fUST/lending_fUST_20250103
["ID","MTS","AMOUNT","RATE_DAILY","PERIOD"]
[347546395,1735912241280,-500.0,0.00019178,2]
[347546397,1735912241289,-500.0,0.00019178,2]
[347546399,1735912241299,-500.0,0.00019178,2]
[347546401,1735912241308,-500.0,0.00019178,2]
[347546403,1735912241317,-500.0,0.00019178,2]
[347546405,1735912241326,-500.0,0.00019178,2]
[347546407,1735912241335,-500.0,0.00019178,2]
[347546409,1735912241344,-199.18655631,0.00019178,2]
[347546411,1735912241353,-500.0,0.00019178,2]
[347546413,1735912241363,-500.0,0.00019178,2]
[347546415,1735912241372,-500.0,0.00019178,2]
[347546417,1735912241382,-500.0,0.00019178,2]
[347546419,1735912241391,-500.0,0.00019178,2]
[347546421,1735912241400,-500.0,0.00019178,2]
[347546423,1735912241409,-500.0,0.00019178,2]
[347546425,1735912241420,-500.0,0.00019178,2]
[347546427,1735912241430,-500.0,0.00019178,2]
[347546429,1735912241439,-500.0,0.00019178,2]
[347546431,1735912241448,-1333.02,0.00019178,2]
[347546433,1735912241457,-502.50772738,0.00019178,2]
[347546435,1735912241467,-502.48432463,0.00019178,2]
[347546437,1735912241476,-500.0,0.00019178,2]
[347546439,1735912241485,-500.0,0.00019178,2]
[347546441,1735912241495,-500.0,0.00019178,2]
[347546443,1735912241503,-500.0,0.00019178,2]
[347546445,1735912241512,-605.95,0.00019178,2]
[347546447,1735912241521,-500.0,0.00019178,2]
[347546449,1735912241531,-500.0,0.00019178,2]
[347546451,1735912241540,-500.0,0.00019178,2]
[347546453,1735912241549,-502.59258523,0.00019178,2]
[347546455,1735912241558,-500.0,0.00019178,2]
[347546457,1735912241567,-500.0,0.00019178,2]
[347546459,1735912241577,-2064.79,0.00019178,2]
[347546461,1735912241586,-500.0,0.00019178,2]
[347546463,1735912241596,-501.17643435,0.00019178,2]
[347546465,1735912241605,-500.0,0.00019178,2]
[347546467,1735912241615,-500.0,0.00019178,2]
[347546469,1735912241624,-500.0,0.00019178,2]
[347546471,1735912241633,-500.0,0.00019178,2]
[347546473,1735912241643,-593.69894961,0.00019178,2]
[347546475,1735912241652,-500.0,0.00019178,2]
[347546477,1735912241661,-500.0,0.00019178,2]
[347546479,1735912241673,-500.0,0.00019178,2]
[347546481,1735912241683,-500.0,0.00019178,2]
[347546483,1735912241692,-500.0,0.00019178,2]
[347546485,1735912241702,-500.0,0.00019178,2]
[347546487,1735912241712,-500.0,0.00019178,2]
[347546489,1735912241722,-504.83851955,0.00019178,2]
[347546491,1735912241731,-500.0,0.00019178,2]
[347546493,1735912241740,-246.55685016,0.00019178,2]
[347546495,1735912241749,-500.0,0.00019178,2]
[347546497,1735912241759,-500.0,0.00019178,2]
[347546499,1735912241767,-500.0,0.00019178,2]
[347546501,1735912241777,-501.59033975,0.00019178,2]
[347546503,1735912241787,-500.0,0.00019178,2]
[347546505,1735912241796,-500.0,0.00019178,2]
[347546507,1735912241805,-478.63089672,0.00019178,2]
[347546509,1735912241814,-500.0,0.00019178,2]
[347546511,1735912241823,-565.96,0.00019178,2]
[347546513,1735912241834,-506.13800667,0.00019178,2]
[347546516,1735912241844,-500.0,0.00019178,2]
[347546517,1735912241853,-2610.54,0.00019178,2]
[347546520,1735912241863,-500.0,0.00019178,2]
[347546522,1735912241875,-500.0,0.00019178,2]
[347546524,1735912241884,-500.0,0.00019178,2]
[347546526,1735912241893,-1463.32,0.00019178,2]
[347546528,1735912241902,-500.0,0.00019178,2]
[347546530,1735912241911,-500.0,0.00019178,2]
[347546532,1735912241922,-500.0,0.00019178,2]
[347546534,1735912241931,-500.0,0.00019178,2]
[347546536,1735912241940,-500.0,0.00019178,2]
[347546538,1735912241949,-500.0,0.00019178,2]
[347546540,1735912241959,-804.14,0.00019178,2]
[347546542,1735912241968,-502.69524158,0.00019178,2]
[347546544,1735912241978,-500.0,0.00019178,2]
[347546546,1735912241987,-500.0,0.00019178,2]
[347546548,1735912241997,-500.0,0.00019178,2]
[347546550,1735912242006,-500.0,0.00019178,2]
[347546552,1735912242015,-500.0,0.00019178,2]
[347546554,1735912242024,-500.0,0.00019178,2]
[347546556,1735912242033,-14.24771806,0.00019178,2]
[347546576,1735912242212,-295.40536557,0.00019178,2]
[347546625,1735912242606,-3292.80412262,0.00016494,2]
[347546628,1735912242617,-190.34691637,0.00019178,2]
[347546630,1735912242627,-2880.98,0.00019178,2]
[347546632,1735912242636,-503.10959947,0.00019178,2]
[347546634,1735912242645,-500.0,0.00019178,2]
[347546636,1735912242654,-1560.2,0.00019178,2]
[347546638,1735912242663,-500.0,0.00019178,2]
[347546640,1735912242677,-500.0,0.00019178,2]
[347546642,1735912242688,-508.80060589,0.00019178,2]
[347546644,1735912242698,-500.0,0.00019178,2]
[347546646,1735912242708,-1525.72,0.00019178,2]
[347546648,1735912242718,-519.722177,0.00019178,2]
[347546650,1735912242727,-106.36398483,0.00019178,2]
[347546652,1735912242739,-413.35819217,0.00019178,2]
[347546654,1735912242748,-283.67604527,0.00019178,2]
[347546656,1735912242760,-874.00395473,0.00019178,2]
[347546658,1735912242770,-52.27682977,0.00019178,2]
[347546660,1735912242781,-447.72317023,0.00019178,2]
[347546662,1735912242790,-48.61759387,0.00019178,2]
[347546665,1735912242802,-451.38240613,0.00019178,2]
[347546667,1735912242811,-519.722177,0.00019178,2]
[347546668,1735912242820,-500.0,0.00019178,2]
[347546671,1735912242830,-519.722177,0.00019178,2]
[347546673,1735912242840,-504.16359449,0.00019178,2]
[347546675,1735912242849,-5.00964538,0.00019178,2]
[347546677,1735912242866,-494.99035462,0.00019178,2]
[347546679,1735912242878,-335.40288788,0.00019178,2]
[347546700,1735912243048,-164.59711212,0.00019178,2]
[347546702,1735912243059,-500.0,0.00019178,2]
[347546704,1735912243068,-151.0,0.00019178,2]
[347546706,1735912243077,-500.0,0.00019178,2]
[347546708,1735912243087,-151.0,0.00019178,2]
[347546710,1735912243096,-500.0,0.00019178,2]
[347546712,1735912243105,-615.19128429,0.00019178,2]
[347546715,1735912243115,-500.0,0.00019178,2]
[347546717,1735912243124,-500.0,0.00019178,2]
[347546719,1735912243134,-500.0,0.00019178,2]
[347546721,1735912243143,-500.0,0.00019178,2]
[347546736,1735912243272,-1169.57,0.00019178,2]
[347546738,1735912243282,-151.0,0.00019178,2]
[347546740,1735912243291,-500.0,0.00019178,2]
[347546742,1735912243300,-265.30056,0.00019178,2]
[347546744,1735912243311,-1299.54,0.00019178,2]
[347546747,1735912243320,-500.0,0.00019178,2]
[347546749,1735912243330,-500.0,0.00019178,2]
[347546750,1735912243339,-158.797415,0.00019178,2]
[347546753,1735912243348,-2103.65,0.000192,2]
[347546755,1735912243358,-3611.5,0.000192,2]
[347546757,1735912243367,-12856.62,0.000192,2]
[347546759,1735912243376,-9300.6,0.000192,2]
[347546761,1735912243386,-151.0,0.000192,2]
[347546764,1735912243395,-151.0,0.000192,2]
[347546767,1735912243405,-151.0,0.000192,2]
[347546769,1735912243416,-151.0,0.000192,2]
[347546771,1735912243425,-618.0,0.000192,2]
[347546773,1735912243434,-50157.82309477,0.000193,5]
[347547042,1735912246095,-394.0,0.00018958,2]
[347547044,1735912246104,-106.0,0.0001915,2]
[347547046,1735912246116,-288.0,0.0001915,2]
[347547048,1735912246126,-159.8236228,0.00019177,2]
[347547050,1735912246135,-209.52179526,0.00019178,2]
[347547339,1735912511732,1514.49,0.00025,120]
[347547340,1735912525377,462.9,0.00025,120]
[347547341,1735912537197,258.167809,0.00013973,2]
[347547342,1735912731241,151.0,0.00025,120]
[347547361,1735913193129,-1133.42747994,0.00015687,2]
[347547362,1735913193151,-1133.42747994,0.00015845,2]
[347547363,1735913193172,-1170.73766462,0.00017,2]
[347547404,1735913432288,-946.76151073,0.00016662,2]
[347547406,1735913432298,-946.76151073,0.00017,2]
[347547408,1735913432309,-116.00164217,0.00018145,2]
[347547410,1735913432324,-59.99978783,0.00018145,2]
[347547412,1735913432334,-380.804,0.0001834,2]
[347547414,1735913432344,-302.78807257,0.00019,2]
[347547416,1735913432355,-189.9181396,0.00019007,2]
[347547468,1735913438126,-581.65499999,0.00019007,2]
[347547471,1735913438146,-554.68204471,0.00018817,2]
[347547475,1735913438180,-5262.7299148,0.00018817,2]
[347547477,1735913438190,-9536.69900938,0.00019007,2]
[347547479,1735913438199,-1456.76259203,0.00019073,2]
[347547482,1735913438209,-378.24412484,0.00019078,2]
[347547485,1735913438219,-10000.0,0.000191,2]
[347547487,1735913438229,-806.0,0.000191,8]
[347547489,1735913438238,-150.0,0.00019152,2]
[347547491,1735913438248,-534.0,0.00019152,2]
[347547492,1735913438258,-2038.0,0.00019152,2]
[347547493,1735913438268,-1999.72498175,0.00019152,2]
[347547494,1735913438282,-321.27501825,0.00019152,2]
[347547495,1735913438291,-211.22,0.00019173,2]
[347547496,1735913438300,-598.15850248,0.00019173,2]
[347547497,1735913438313,-500.0,0.00019173,2]
[347547498,1735913438322,-500.0,0.00019173,2]
[347547499,1735913438331,-478.05500604,0.00019173,2]
[347547500,1735913438340,-179.37622251,0.00019173,2]
[347547501,1735913438350,-500.0,0.00019173,2]
[347547502,1735913438360,-500.0,0.00019173,2]
[347547503,1735913438369,-347.80364614,0.00019178,2]
[347547504,1735913438379,-416.1784102,0.00019178,2]
[347547505,1735913438389,-500.0,0.00019178,2]
[347547506,1735913438399,-506.07222546,0.00019178,2]
[347547507,1735913438408,-504.47675516,0.00019178,2]
[347547508,1735913438418,-497.4566339,0.00019178,2]
[347547509,1735913438427,-451.53564724,0.00019178,2]
[347547510,1735913438436,-500.0,0.00019178,2]
[347547511,1735913438445,-157.1069165,0.00019178,2]
[347547512,1735913438454,-500.0,0.00019178,2]
[347547513,1735913438463,-601.08330631,0.00019178,2]
[347547514,1735913438472,-500.68782716,0.00019178,2]
[347547515,1735913438481,-504.69541488,0.00019178,2]
[347547516,1735913438490,-500.0,0.00019178,2]
[347547517,1735913438499,-500.0,0.00019178,2]
[347547518,1735913438509,-500.0,0.00019178,2]
[347547519,1735913438519,-500.0,0.00019178,2]
[347547521,1735913438529,-500.0,0.00019178,2]
[347547523,1735913438539,-500.0,0.00019178,2]
[347547525,1735913438549,-500.0,0.00019178,2]
[347547527,1735913438558,-500.0,0.00019178,2]
[347547529,1735913438568,-500.0,0.00019178,2]
[347547531,1735913438576,-500.0,0.00019178,2]
[347547533,1735913438586,-500.0,0.00019178,2]
[347547535,1735913438595,-317.22280647,0.00019178,2]
[347547537,1735913438605,-500.0,0.00019178,2]
[347547539,1735913438615,-500.0,0.00019178,2]
[347547541,1735913438624,-500.0,0.00019178,2]
[347547543,1735913438633,-500.0,0.00019178,2]
[347547545,1735913438643,-500.0,0.00019178,2]
[347547547,1735913438653,-501.72232085,0.00019178,2]
[347547549,1735913438662,-500.0,0.00019178,2]
[347547551,1735913438671,-500.0,0.00019178,2]
[347547553,1735913438681,-500.0,0.00019178,2]
[347547555,1735913438690,-500.0,0.00019178,2]
[347547557,1735913438699,-500.0,0.00019178,2]
[347547559,1735913438709,-500.0,0.00019178,2]
[347547561,1735913438718,-500.0,0.00019178,2]
[347547563,1735913438728,-500.74935396,0.00019178,2]
[347547565,1735913438737,-500.0,0.00019178,2]
[347547567,1735913438746,-501.8567517,0.00019178,2]
[347547569,1735913438756,-500.0,0.00019178,2]
[347547571,1735913438766,-500.0,0.00019178,2]
[347547573,1735913438775,-500.0,0.00019178,2]
[347547575,1735913438785,-500.0,0.00019178,2]
[347547577,1735913438795,-419.83398204,0.00019178,2]
[347547579,1735913438806,-500.0,0.00019178,2]
[347547581,1735913438815,-500.0,0.00019178,2]
[347547583,1735913438825,-500.0,0.00019178,2]
[347547585,1735913438834,-412.68694583,0.00019178,2]
[347547662,1735913440290,-87.31305417,0.00019178,2]
[347547664,1735913440301,-500.0,0.00019178,2]
[347547665,1735913440315,-500.0,0.00019178,2]
[347547666,1735913440333,-500.0,0.00019178,2]
[347547667,1735913440346,-500.0,0.00019178,2]
[347547668,1735913440355,-500.0,0.00019178,2]
[347547670,1735913440364,-500.76593469,0.00019178,2]
[347547672,1735913440373,-500.0,0.00019178,2]
[347547674,1735913440383,-500.0,0.00019178,2]
[347547676,1735913440392,-500.0,0.00019178,2]
[347547678,1735913440401,-366.19091815,0.00019178,2]
[347547681,1735913440414,-133.80908185,0.00019178,2]
[347547683,1735913440423,-500.0,0.00019178,2]
[347547685,1735913440432,-500.0,0.00019178,2]
[347547687,1735913440443,-500.0,0.00019178,2]
[347547689,1735913440452,-231.91091815,0.00019178,2]
[347547691,1735913440468,-268.08908185,0.00019178,2]
[347547693,1735913440477,-500.0,0.00019178,2]
[347547695,1735913440487,-500.46184037,0.00019178,2]
[347547697,1735913440496,-500.0,0.00019178,2]
[347547699,1735913440505,-500.0,0.00019178,2]
[347547701,1735913440514,-500.0,0.00019178,2]
[347547703,1735913440524,-502.37019304,0.00019178,2]
[347547705,1735913440534,-500.0,0.00019178,2]
[347547707,1735913440543,-500.0,0.00019178,2]
[347547709,1735913440552,-500.0,0.00019178,2]
[347547711,1735913440562,-499.6684972,0.00019178,2]
[347547713,1735913440571,-500.0,0.00019178,2]
[347547715,1735913440580,-500.0,0.00019178,2]
[347547717,1735913440590,-501.18130003,0.00019178,2]
[347547719,1735913440599,-500.0,0.00019178,2]
[347547721,1735913440608,-500.0,0.00019178,2]
[347547723,1735913440618,-500.0,0.00019178,2]
[347547725,1735913440627,-500.0,0.00019178,2]
[347547727,1735913440636,-500.0,0.00019178,2]
[347547729,1735913440646,-500.0,0.00019178,2]
[347547731,1735913440656,-500.0,0.00019178,2]
[347547733,1735913440665,-500.0,0.00019178,2]
[347547735,1735913440675,-500.0,0.00019178,2]
[347547737,1735913440684,-500.0,0.00019178,2]
[347547740,1735913440693,-500.0,0.00019178,2]
[347547742,1735913440703,-500.0,0.00019178,2]
[347547744,1735913440712,-500.0,0.00019178,2]
[347547746,1735913440721,-500.0,0.00019178,2]
[347547747,1735913440730,-500.0,0.00019178,2]
[347547749,1735913440740,-503.22058555,0.00019178,2]
[347547751,1735913440750,-500.0,0.00019178,2]
[347547754,1735913440759,-500.0,0.00019178,2]
[347547755,1735913440770,-500.0,0.00019178,2]
[347547757,1735913440780,-500.0,0.00019178,2]
[347547759,1735913440790,-500.0,0.00019178,2]
[347547761,1735913440799,-500.0,0.00019178,2]
[347547764,1735913440810,-501.41638233,0.00019178,2]
[347547766,1735913440819,-500.0,0.00019178,2]
[347547768,1735913440829,-500.0,0.00019178,2]
[347547770,1735913440838,-500.0,0.00019178,2]
[347547772,1735913440848,-252.84476319,0.00019178,2]
[347547774,1735913440858,-500.0,0.00019178,2]
[347547776,1735913440867,-500.0,0.00019178,2]
[347547778,1735913440877,-500.53125256,0.00019178,2]
[347547780,1735913440887,-500.0,0.00019178,2]
[347547782,1735913440897,-500.0,0.00019178,2]
[347547784,1735913440907,-500.0,0.00019178,2]
[347547786,1735913440917,-500.51051112,0.00019178,2]
[347547788,1735913440926,-539.92449866,0.00019178,2]
[347547790,1735913440936,-500.0,0.00019178,2]
[347547792,1735913440946,-228.40318252,0.00019178,2]
[347547794,1735913440955,-500.0,0.00019178,2]
[347547796,1735913440965,-500.0,0.00019178,2]
[347547798,1735913440974,-500.0,0.00019178,2]
[347547799,1735913440984,-633.87,0.00019178,2]
[347547800,1735913440993,-500.0,0.00019178,2]
[347547801,1735913441003,-500.0,0.00019178,2]
[347547802,1735913441012,-500.0,0.00019178,2]
[347547803,1735913441023,-500.0,0.00019178,2]
[347547804,1735913441033,-500.0,0.00019178,2]
[347547805,1735913441042,-503.04971023,0.00019178,2]
[347547806,1735913441052,-500.0,0.00019178,2]
[347547807,1735913441062,-500.0,0.00019178,2]
[347547808,1735913441072,-500.0,0.00019178,2]
[347547809,1735913441081,-500.75235751,0.00019178,2]
[347547810,1735913441090,-500.60715714,0.00019178,2]
[347547811,1735913441100,-500.0,0.00019178,2]
[347547812,1735913441109,-500.45036042,0.00019178,2]
[347547813,1735913441119,-500.0,0.00019178,2]
[347547814,1735913441129,-500.0,0.00019178,2]
[347547815,1735913441139,-503.76653617,0.00019178,2]
[347547816,1735913441148,-500.0,0.00019178,2]
[347547817,1735913441158,-500.0,0.00019178,2]
[347547818,1735913441169,-571.68700028,0.00019178,2]
[347547819,1735913441179,-527.13122536,0.00019178,2]
[347547820,1735913441189,-503.72669354,0.00019178,2]
[347547821,1735913441198,-500.84459064,0.00019178,2]
[347547822,1735913441210,-500.0,0.00019178,2]
[347547823,1735913441219,-500.0,0.00019178,2]
[347547824,1735913441228,-500.0,0.00019178,2]
[347547825,1735913441238,-500.0,0.00019178,2]
[347547826,1735913441247,-500.0,0.00019178,2]
[347547827,1735913441370,-500.0,0.00019178,2]
[347547828,1735913441379,-500.0,0.00019178,2]
[347547829,1735913441389,-500.0,0.00019178,2]
[347547830,1735913441399,-500.0,0.00019178,2]
[347547831,1735913441409,-500.0,0.00019178,2]
[347547832,1735913441418,-500.0,0.00019178,2]
[347547834,1735913441427,-500.0,0.00019178,2]
[347547836,1735913441438,-500.0,0.00019178,2]
[347547838,1735913441447,-500.0,0.00019178,2]
[347547840,1735913441457,-500.0,0.00019178,2]
[347547842,1735913441466,-500.0,0.00019178,2]
[347547844,1735913441476,-500.0,0.00019178,2]
[347547846,1735913441485,-500.0,0.00019178,2]
[347547848,1735913441495,-500.0,0.00019178,2]
[347547850,1735913441505,-500.0,0.00019178,2]
[347547852,1735913441514,-500.0,0.00019178,2]
[347547854,1735913441528,-500.0,0.00019178,2]
[347547856,1735913441539,-500.0,0.00019178,2]
[347547858,1735913441549,-500.0,0.00019178,2]
[347547860,1735913441558,-500.0,0.00019178,2]
[347547862,1735913441568,-500.0,0.00019178,2]
[347547864,1735913441577,-500.0,0.00019178,2]
[347547866,1735913441586,-500.0,0.00019178,2]
[347547868,1735913441595,-579.01,0.00019178,2]
[347547870,1735913441604,-500.0,0.00019178,2]
[347547872,1735913441613,-500.0,0.00019178,2]
[347547874,1735913441623,-657.67,0.00019178,2]
[347547876,1735913441632,-500.0,0.00019178,2]
[347547878,1735913441641,-500.0,0.00019178,2]
[347547880,1735913441650,-500.0,0.00019178,2]
[347547882,1735913441659,-500.0,0.00019178,2]
[347547884,1735913441669,-500.0,0.00019178,2]
[347547886,1735913441678,-500.0,0.00019178,2]
[347547888,1735913441688,-500.0,0.00019178,2]
[347547890,1735913441697,-500.0,0.00019178,2]
[347547892,1735913441706,-500.0,0.00019178,2]
[347547894,1735913441715,-500.0,0.00019178,2]
[347547896,1735913441725,-500.0,0.00019178,2]
[347547898,1735913441734,-500.0,0.00019178,2]
[347547900,1735913441742,-591.14516218,0.00019178,2]
[347547902,1735913441752,-500.0,0.00019178,2]
[347547904,1735913441761,-500.0,0.00019178,2]
[347547906,1735913441773,-504.55447812,0.00019178,2]
[347547908,1735913441783,-500.0,0.00019178,2]
[347547910,1735913441792,-500.0,0.00019178,2]
[347547912,1735913441801,-500.0,0.00019178,2]
[347547914,1735913441811,-500.0,0.00019178,2]
[347547916,1735913441820,-500.0,0.00019178,2]
[347547918,1735913441829,-1000.0,0.00019178,2]
[347547920,1735913441839,-500.0,0.00019178,2]
[347547922,1735913441848,-500.0,0.00019178,2]
[347547924,1735913441857,-500.0,0.00019178,2]
[347547926,1735913441866,-500.0,0.00019178,2]
[347547928,1735913441876,-500.0,0.00019178,2]
[347547930,1735913441886,-500.0,0.00019178,2]
[347547932,1735913441895,-500.0,0.00019178,2]
[347547934,1735913441904,-500.0,0.00019178,2]
[347547936,1735913441914,-500.0,0.00019178,2]
[347547938,1735913441923,-500.0,0.00019178,2]
[347547940,1735913441932,-500.0,0.00019178,2]
[347547942,1735913441942,-280.12947206,0.00019178,2]
[347547944,1735913441951,-500.0,0.00019178,2]
[347547946,1735913441960,-500.0,0.00019178,2]
[347547948,1735913441970,-500.0,0.00019178,2]
[347547950,1735913441979,-500.0,0.00019178,2]
[347547952,1735913441988,-309.81764989,0.00019178,2]
[347547954,1735913441998,-500.0,0.00019178,2]
[347547956,1735913442007,-500.0,0.00019178,2]
[347547958,1735913442016,-500.0,0.00019178,2]
[347547960,1735913442028,-515.72536417,0.00019178,2]
[347547962,1735913442037,-500.0,0.00019178,2]
[347547964,1735913442046,-500.0,0.00019178,2]
[347547966,1735913442056,-500.0,0.00019178,2]
[347547968,1735913442065,-500.0,0.00019178,2]
[347547970,1735913442074,-586.24062272,0.00019178,2]
[347547972,1735913442083,-500.0,0.00019178,2]
[347547974,1735913442093,-500.0,0.00019178,2]
[347547976,1735913442102,-500.0,0.00019178,2]
[347547978,1735913442111,-500.0,0.00019178,2]
[347547980,1735913442121,-500.0,0.00019178,2]
[347547982,1735913442131,-500.0,0.00019178,2]
[347547985,1735913442140,-500.0,0.00019178,2]
[347547986,1735913442150,-500.0,0.00019178,2]
[347547987,1735913442159,-500.0,0.00019178,2]
[347547988,1735913442167,-500.0,0.00019178,2]
[347547989,1735913442176,-500.0,0.00019178,2]
[347547990,1735913442185,-500.68052591,0.00019178,2]
[347547991,1735913442194,-500.0,0.00019178,2]
[347547992,1735913442203,-513.33,0.00019178,2]
[347547993,1735913442213,-500.0,0.00019178,2]
[347547994,1735913442222,-500.0,0.00019178,2]
[347547995,1735913442231,-500.0,0.00019178,2]
[347547996,1735913442241,-500.0,0.00019178,2]
[347547997,1735913442250,-500.0,0.00019178,2]
[347547998,1735913442259,-778.46,0.00019178,2]
[347547999,1735913442270,-525.48566684,0.00019178,2]
[347548000,1735913442279,-500.0,0.00019178,2]
[347548001,1735913442289,-500.0,0.00019178,2]
[347548002,1735913442298,-500.0,0.00019178,2]
[347548003,1735913442308,-500.0,0.00019178,2]
[347548004,1735913442322,-500.0,0.00019178,2]
[347548005,1735913442331,-500.0,0.00019178,2]
[347548006,1735913442340,-200.0,0.00019178,2]
[347548007,1735913442351,-500.0,0.00019178,2]
[347548008,1735913442359,-500.0,0.00019178,2]
[347548009,1735913442369,-500.0,0.00019178,2]
[347548010,1735913442378,-500.0,0.00019178,2]
[347548011,1735913442387,-500.0,0.00019178,2]
[347548012,1735913442397,-500.0,0.00019178,2]
[347548014,1735913442407,-500.0,0.00019178,2]
[347548016,1735913442416,-500.0,0.00019178,2]
[347548018,1735913442426,-500.0,0.00019178,2]
[347548020,1735913442435,-500.0,0.00019178,2]
[347548021,1735913442444,-500.0,0.00019178,2]
[347548024,1735913442453,-416.14513175,0.00019178,2]
[347548026,1735913442463,-500.0,0.00019178,2]
[347548027,1735913442472,-500.0,0.00019178,2]
[347548029,1735913442481,-500.0,0.00019178,2]
[347548031,1735913442491,-500.0,0.00019178,2]
[347548033,1735913442500,-1279.26,0.00019178,2]
[347548036,1735913442510,-500.0,0.00019178,2]
[347548038,1735913442521,-1219.16,0.00019178,2]
[347548039,1735913442530,-500.0,0.00019178,2]
[347548042,1735913442540,-500.0,0.00019178,2]
[347548043,1735913442550,-500.0,0.00019178,2]
[347548046,1735913442560,-500.0,0.00019178,2]
[347548048,1735913442569,-500.0,0.00019178,2]
[347548050,1735913442579,-500.0,0.00019178,2]
[347548052,1735913442588,-500.0,0.00019178,2]
[347548054,1735913442597,-500.0,0.00019178,2]
[347548056,1735913442607,-198.72992045,0.00019178,2]
[347548058,1735913442616,-500.0,0.00019178,2]
[347548060,1735913442626,-500.0,0.00019178,2]
[347548061,1735913442635,-500.0,0.00019178,2]
[347548064,1735913442645,-501.20696851,0.00019178,2]
[347548066,1735913442654,-500.0,0.00019178,2]
[347548067,1735913442665,-505.94234459,0.00019178,2]
[347548070,1735913442675,-541.48680676,0.00019178,2]
[347548071,1735913442684,-500.0,0.00019178,2]
[347548074,1735913442695,-500.0,0.00019178,2]
[347548076,1735913442704,-500.0,0.00019178,2]
[347548078,1735913442713,-500.0,0.00019178,2]
[347548080,1735913442723,-500.0,0.00019178,2]
[347548082,1735913442733,-500.0,0.00019178,2]
[347548085,1735913442742,-500.0,0.00019178,2]
[347548087,1735913442751,-500.0,0.00019178,2]
[347548089,1735913442760,-500.0,0.00019178,2]
[347548093,1735913442771,-500.0,0.00019178,2]
[347548096,1735913442780,-500.0,0.00019178,2]
[347548098,1735913442790,-500.0,0.00019178,2]
[347548099,1735913442799,-501.52316425,0.00019178,2]
[347548102,1735913442809,-1107.66,0.00019178,2]
[347548103,1735913442818,-500.0,0.00019178,2]
[347548105,1735913442827,-500.0,0.00019178,2]
[347548107,1735913442837,-635.01,0.00019178,2]
[347548109,1735913442847,-500.0,0.00019178,2]
[347548112,1735913442857,-500.0,0.00019178,2]
[347548114,1735913442867,-500.0,0.00019178,2]
[347548116,1735913442877,-500.0,0.00019178,2]
[347548119,1735913442886,-500.0,0.00019178,2]
[347548122,1735913442895,-500.0,0.00019178,2]
[347548125,1735913442906,-500.0,0.00019178,2]
[347548130,1735913442916,-500.0,0.00019178,2]
[347548132,1735913442925,-500.0,0.00019178,2]
[347548136,1735913442935,-500.0,0.00019178,2]
[347548137,1735913442944,-500.0,0.00019178,2]
[347548139,1735913442954,-500.0,0.00019178,2]
[347548141,1735913442964,-501.29555233,0.00019178,2]
[347548143,1735913442973,-500.0,0.00019178,2]
[347548146,1735913442983,-500.0,0.00019178,2]
[347548148,1735913442993,-500.0,0.00019178,2]
[347548150,1735913443002,-500.0,0.00019178,2]
[347548152,1735913443012,-504.4796021,0.00019178,2]
[347548154,1735913443023,-500.0,0.00019178,2]